bitfinex/quotes_BTCUSD_20251001
["timestamp","ask_amount","ask_price","bid_price","bid_amount"]
[1759315716269,0.14129256,116360.0,116350.0,9.30830478]
[1759315717798,0.14129256,116360.0,116350.0,9.06402478]
[1759315717942,0.14129256,116360.0,116350.0,10.11258478]
[1759315718157,0.14334256,116360.0,116350.0,10.11258478]
[1759315718379,0.14129256,116360.0,116350.0,10.11258478]
[1759315720046,0.04536277,116360.0,116350.0,10.11258478]
[1759315731443,0.04536277,116360.0,116350.0,10.07742218]
[1759315731636,0.04536277,116360.0,116350.0,10.18560558]
[1759315732518,1e-08,116360.0,116350.0,10.18911424]
[1759315732739,1e-08,116360.0,116350.0,10.11188595]
[1759315733145,1e-08,116360.0,116350.0,10.02248595]
[1759315733331,1e-08,116360.0,116350.0,10.11184595]
[1759315733665,1e-08,116360.0,116350.0,9.06332595]
[1759315733923,1e-08,116360.0,116350.0,10.11176595]
[1759315734325,1e-08,116360.0,116350.0,9.06332595]
[1759315734534,1e-08,116360.0,116350.0,9.00024301]
[1759315734787,1e-08,116360.0,116350.0,10.04868301]
[1759315735167,1e-08,116360.0,116350.0,9.00024301]
[1759315735367,0.00311001,116360.0,116350.0,10.04868301]
[1759315735578,1e-08,116360.0,116350.0,10.04868301]
[1759315735755,1e-08,116360.0,116350.0,9.00024301]
[1759315736157,0.00513001,116360.0,116350.0,8.66024301]
[1759315736385,0.00513001,116360.0,116350.0,8.58306823]
[1759315736672,0.00513001,116360.0,116350.0,9.97150823]
[1759315737201,0.00202001,116360.0,116350.0,9.97150823]
[1759315737391,1e-08,116360.0,116350.0,9.97150823]
[1759315740430,1e-08,116360.0,116350.0,8.92306823]
[1759315740642,1e-08,116360.0,116350.0,9.97150823]
[1759315742319,0.00513001,116360.0,116350.0,9.97150823]
[1759315742530,0.00513001,116360.0,116350.0,9.00024301]
[1759315742663,0.00513001,116360.0,116350.0,10.04868301]
[1759315742869,1e-08,116360.0,116350.0,10.04868301]
[1759315752652,1e-08,116360.0,116350.0,9.00024301]
[1759315752855,1e-08,116360.0,116350.0,10.04868301]
[1759315756163,1e-08,116360.0,116350.0,9.00024301]
[1759315756384,1e-08,116360.0,116350.0,10.04864301]
[1759315763409,1e-08,116360.0,116350.0,9.00024301]
[1759315763611,1e-08,116360.0,116350.0,10.04872733]
[1759315764209,1e-08,116360.0,116350.0,9.00032733]
[1759315764412,1e-08,116360.0,116350.0,9.97146823]
[1759315764960,1e-08,116360.0,116350.0,10.04875776]
[1759315765206,1e-08,116360.0,116350.0,9.97146823]
[1759315768097,0.00504001,116360.0,116350.0,9.97146823]
[1759315768865,0.00207001,116360.0,116350.0,8.92306823]
[1759315769067,1e-08,116360.0,116350.0,9.97146823]
[1759315769380,0.00504001,116360.0,116350.0,9.97146823]
[1759315769556,1e-08,116360.0,116350.0,9.97146823]
[1759315769753,1e-08,116360.0,116350.0,8.92306823]
[1759315769957,1e-08,116360.0,116350.0,9.88210823]
[1759315770175,0.1009698,116360.0,116350.0,10.01863253]
[1759315771614,0.1009698,116360.0,116350.0,9.94131633]
[1759315771957,0.1009698,116360.0,116350.0,8.89291633]
[1759315772201,0.1009698,116360.0,116350.0,9.94131633]
[1759315773202,0.1009698,116360.0,116350.0,10.01863253]
[1759315774028,0.1009698,116360.0,116350.0,9.94131633]
[1759315774278,0.1009698,116360.0,116350.0,8.89291633]
[1759315774478,0.1009698,116360.0,116350.0,9.94131633]
[1759315774998,0.1009698,116360.0,116350.0,8.89291633]
[1759315775219,0.1009698,116360.0,116350.0,9.94131633]
[1759315775431,0.1009698,116360.0,116350.0,8.89291633]
[1759315775665,0.1009698,116360.0,116350.0,9.94131633]
[1759315775867,0.3634698,116360.0,116350.0,9.94131633]
[1759315783335,0.53535017,116360.0,116350.0,8.72102119]
[1759315783538,0.53535017,116360.0,116350.0,9.07847572]
[1759315783742,0.53535017,116360.0,116350.0,9.29684]
[1759315784328,0.53535016,116360.0,116350.0,9.28884]
[1759315784507,0.54035016,116360.0,116350.0,9.32384]
[1759315784968,0.54035016,116360.0,116350.0,9.49573514]
[1759315785160,0.36846979,116360.0,116350.0,9.49573514]
[1759315785710,0.54035016,116360.0,116350.0,9.49573514]
[1759315785926,0.54235016,116360.0,116350.0,9.50473514]
[1759315786550,0.37046979,116360.0,116350.0,9.50473514]
[1759315786804,0.54235016,116360.0,116350.0,9.50473514]
[1759315787874,0.27985016,116360.0,116350.0,9.50473514]
[1759315789385,0.27985016,116360.0,116350.0,1.50473514]
[1759315789592,0.27985016,116360.0,116350.0,9.50473514]
[1759315791361,0.27985016,116360.0,116350.0,9.33284]
[1759315791537,0.27985016,116360.0,116350.0,9.50473514]
[1759315792168,0.27985016,116360.0,116350.0,9.33284]
[1759315792382,0.27985016,116360.0,116350.0,8.64184]
[1759315792589,0.27985016,116360.0,116350.0,9.33284]
[1759315792763,0.27985016,116360.0,116350.0,9.50473514]
[1759315795293,0.27985016,116360.0,116350.0,8.64184]
[1759315795521,0.27985016,116360.0,116350.0,9.33284]
[1759315795907,0.27985016,116360.0,116350.0,8.64184]
[1759315796124,0.27985016,116360.0,116350.0,9.33288]
[1759315796489,0.27985016,116360.0,116350.0,9.24352]
[1759315796694,0.27985016,116360.0,116350.0,9.33288]
[1759315797132,0.27985016,116360.0,116350.0,1.08872]
[1759315797342,0.27985016,116360.0,116350.0,1.33288]
[1759315797543,0.27985016,116360.0,116350.0,0.64184]
[1759315797703,0.27985016,116360.0,116350.0,1.33288]
[1759315798055,0.27285016,116360.0,116350.0,1.28888]
[1759315798256,0.27685016,116360.0,116350.0,1.07772]
[1759315798461,0.27685016,116360.0,116350.0,0.98188]
[1759315798678,0.27685016,116360.0,116350.0,0.29084]
[1759315798881,0.27685016,116360.0,116350.0,0.98188]
[1759315799039,0.27885016,116360.0,116350.0,0.98688]
[1759315799264,0.36823563,116360.0,116350.0,0.65336]
[1759315799478,0.36823563,116360.0,116350.0,0.62936]
[1759315799685,0.39404025,116360.0,116350.0,0.62936]
[1759315800529,0.38804025,116360.0,116350.0,0.59136]
[1759315800742,0.38804025,116360.0,116350.0,0.59536]
[1759315800945,0.39404025,116360.0,116350.0,0.62536]
[1759315807616,0.39404025,116360.0,116350.0,0.29184]
[1759315807835,0.39404025,116360.0,116350.0,0.62536]
[1759315808484,0.39404025,116360.0,116350.0,0.29184]
[1759315808696,0.39404025,116360.0,116310.0,0.02511168]
[1759315808697,0.26786926,116320.0,116310.0,0.02511168]
[1759315808929,0.26994926,116320.0,116310.0,0.35863168]
[1759315809140,0.27298926,116320.0,116310.0,0.33352]
[1759315809970,0.27298926,116320.0,116310.0,0.3335666]
[1759315810187,0.28698926,116320.0,116310.0,0.3375666]
[1759315810878,0.29098926,116320.0,116310.0,0.0340466]
[1759315811094,0.29098926,116320.0,116310.0,0.7252466]
[1759315811291,0.29098926,116320.0,116310.0,0.74226519]
[1759315812131,0.38037473,116320.0,116310.0,0.49806519]
[1759315812364,0.38037473,116320.0,116310.0,0.74226519]
[1759315812779,0.38037473,116320.0,116310.0,0.29526519]
[1759315812957,0.38037473,116320.0,116310.0,0.38466519]
[1759315813382,0.38037473,116320.0,116310.0,0.0340466]
[1759315813594,0.38037473,116320.0,116310.0,0.1616866]
[1759315815146,0.38037473,116320.0,116310.0,0.17855536]
[1759315815463,0.40618845,116320.0,116310.0,0.17855536]
[1759315818974,0.40618845,116320.0,116310.0,0.0307966]
[1759315819186,0.40618845,116320.0,116310.0,0.3646366]
[1759315819618,0.40618845,116320.0,116310.0,0.3645966]
[1759315819773,0.40618845,116320.0,116310.0,0.0307966]
[1759315820292,0.40618845,116320.0,116310.0,0.1587566]
[1759315820661,0.40618845,116320.0,116310.0,0.3645966]
[1759315820859,0.40618845,116320.0,116310.0,0.0307966]
[1759315821101,0.41415837,116320.0,116310.0,0.0663166]
[1759315821308,0.41415837,116320.0,116310.0,0.2751966]
[1759315822054,0.39615837,116320.0,116310.0,0.2444]
[1759315822254,0.40015837,116320.0,116310.0,0.2524]
[1759315822663,0.39615837,116320.0,116310.0,0.2444]
[1759315823009,0.41915837,116320.0,116310.0,0.2474]
[1759315824995,0.88042121,116320.0,116310.0,0.24744]
[1759315825214,0.88042121,116320.0,116280.0,0.37353055]
[1759315825215,0.17198383,116290.0,116280.0,0.37353055]
[1759315825418,0.27303362,116290.0,116280.0,0.00046622]
[1759315825625,0.27303362,116290.0,116280.0,0.70750023]
[1759315826257,0.36241909,116290.0,116280.0,0.70750023]
[1759315826472,0.36841909,116290.0,116280.0,0.72050023]
[1759315826654,0.38141909,116290.0,116280.0,0.72550023]
[1759315833478,0.28691362,116290.0,116280.0,0.72842023]
[1759315833684,0.11492979,116290.0,116280.0,8.90041885]
[1759315833895,0.28691362,116290.0,116280.0,9.24041885]
[1759315834110,0.11492979,116290.0,116280.0,9.24041885]
[1759315834731,0.26791362,116290.0,116280.0,9.05042023]
[1759315834943,0.26791362,116290.0,116280.0,8.35594023]
[1759315835164,0.27303362,116290.0,116280.0,1.04778023]
[1759315835372,0.27303362,116290.0,116280.0,0.35594023]
[1759315835576,0.27303362,116290.0,116280.0,0.70786023]
[1759315835799,0.27303362,116290.0,116280.0,0.01594023]
[1759315836005,0.27303362,116290.0,116280.0,0.35010023]
[1759315836837,0.27603362,116290.0,116280.0,0.35510023]
[1759315837073,0.27303362,116290.0,116280.0,0.35010023]
[1759315837489,0.30303362,116290.0,116280.0,0.35510023]
[1759315838101,0.27303362,116290.0,116280.0,0.35010023]
[1759315838653,0.27603362,116290.0,116280.0,0.35510023]
[1759315838850,0.27091362,116290.0,116280.0,0.35690023]
[1759315839060,0.27091362,116290.0,116280.0,0.35802023]
[1759315839262,0.27091362,116290.0,116280.0,0.02274023]
[1759315839460,0.27603362,116290.0,116280.0,0.71282023]
[1759315839894,0.27603362,116290.0,116280.0,0.02094023]
[1759315840121,0.27603362,116290.0,116280.0,0.71282023]
[1759315840708,0.27603362,116290.0,116280.0,0.02094023]
[1759315840984,0.27603362,116290.0,116280.0,0.71282023]
[1759315844073,0.09892979,116290.0,116280.0,1.22773885]
[1759315844282,0.27091362,116290.0,116280.0,1.22773885]
[1759315844625,0.27091362,116290.0,116280.0,1.22661885]
[1759315845091,0.26791362,116290.0,116280.0,1.22161885]
[1759315845269,0.09892979,116290.0,116280.0,1.23061885]
[1759315845806,0.09592979,116290.0,116280.0,1.22161885]
[1759315846013,0.11892979,116290.0,116280.0,1.22661885]
[1759315847061,0.023,116290.0,116280.0,1.22661885]
[1759315847390,0.023,116290.0,116280.0,9.22773885]
[1759315847599,0.11892979,116290.0,116280.0,9.22773885]
[1759315849229,0.11892979,116290.0,116280.0,9.22661885]
[1759315849862,0.09592979,116290.0,116280.0,9.22161885]
[1759315850045,0.17197255,116300.0,116280.0,9.22161885]
[1759315850046,0.17197255,116300.0,116290.0,0.17198383]
[1759315850183,0.27002234,116300.0,116290.0,0.17198383]
[1759315850630,0.27325234,116300.0,116290.0,0.17198383]
[1759315851676,0.27002234,116300.0,116290.0,0.17378383]
[1759315852545,0.28725234,116300.0,116290.0,0.17198383]
[1759315852697,0.27002234,116300.0,116290.0,0.17378383]
[1759315852904,0.17409255,116300.0,116290.0,0.17378383]
[1759315853070,0.28725234,116300.0,116290.0,0.17378383]
[1759315853266,0.28725234,116300.0,116290.0,0.17198383]
[1759315855069,0.19132255,116300.0,116290.0,0.17198383]
[1759315855242,0.28725234,116300.0,116290.0,0.17198383]
[1759315859642,0.28725234,116300.0,116290.0,0.17378383]
[1759315859798,0.19132255,116300.0,116290.0,0.17378383]
[1759315859955,0.28725234,116300.0,116290.0,0.17378383]
[1759315860825,0.28402234,116300.0,116290.0,0.17378383]
[1759315861045,0.27002234,116300.0,116290.0,0.17378383]
[1759315861206,0.27402234,116300.0,116290.0,0.18178383]
[1759315861590,0.004,116300.0,116290.0,0.87406383]
[1759315861790,0.62670783,116310.0,116290.0,0.86606383]
[1759315861992,0.62670783,116310.0,116300.0,8.0]
[1759315862311,0.62883783,116310.0,116300.0,8.0]
[1759315862714,0.62883783,116310.0,116300.0,8.17196904]
[1759315862940,0.63283783,116310.0,116290.0,0.87726383]
[1759315863141,0.63283783,116310.0,116300.0,8.0]
[1759315863655,0.028,116310.0,116300.0,8.51876904]
[1759315863777,0.17516947,116320.0,116310.0,0.51195426]
[1759315863978,0.00213,116320.0,116310.0,8.75875426]
[1759315864218,0.17193947,116320.0,116310.0,8.75879426]
[1759315864394,0.25324187,116330.0,116310.0,9.20599426]
[1759315864597,0.25324187,116330.0,116320.0,8.0]
[1759315864804,0.34594166,116330.0,116320.0,8.24504]
[1759315865158,0.34807166,116330.0,116320.0,0.33448]
[1759315865329,0.28182404,116330.0,116320.0,0.33448]
[1759315865546,0.28182404,116330.0,116320.0,0.50641947]
[1759315865755,0.28182404,116330.0,116320.0,0.50653979]
[1759315865953,0.18589425,116330.0,116320.0,0.50653979]
[1759315866375,0.36242979,116330.0,116320.0,0.86033979]
[1759315866591,0.36242979,116330.0,116320.0,8.86033979]
[1759315866820,0.09992979,116330.0,116320.0,8.86033979]
[1759315867033,0.12692979,116330.0,116320.0,8.86533979]
[1759315867281,0.09592979,116330.0,116320.0,8.84833979]
[1759315867718,0.11992979,116330.0,116320.0,8.85333979]
[1759315867926,0.12292979,116330.0,116320.0,8.86133979]
[1759315868788,0.12292979,116330.0,116320.0,8.5832736]
[1759315869000,0.12292979,116330.0,116320.0,8.4938736]
[1759315869196,0.12292979,116330.0,116320.0,8.9409936]
[1759315870077,0.12292979,116330.0,116320.0,8.4938736]
[1759315870312,0.12292979,116330.0,116320.0,9.1859136]
[1759315870760,0.027,116330.0,116320.0,9.1859136]
[1759315871225,0.027,116330.0,116320.0,9.1870336]
[1759315871425,0.027,116330.0,116320.0,9.30657097]
[1759315871426,0.12292979,116330.0,116320.0,9.30657097]
[1759315871635,0.027,116330.0,116320.0,8.63344858]
[1759315871842,0.12292979,116330.0,116320.0,8.61453097]
[1759315872043,0.12292979,116330.0,116320.0,9.65921097]
[1759315872386,0.09915979,116350.0,116340.0,0.51189738]
[1759315872593,0.10128979,116350.0,116340.0,0.51189738]
[1759315872803,0.27318493,116350.0,116340.0,8.51190991]
[1759315873013,0.27318493,116350.0,116340.0,0.34]
[1759315873194,0.34266255,116350.0,116340.0,0.67428]
[1759315873839,0.34266255,116350.0,116340.0,0.34]
[1759315874044,0.27318493,116350.0,116340.0,0.67428]
[1759315874256,0.30318493,116350.0,116340.0,0.67928]
[1759315875294,0.27318493,116350.0,116340.0,0.67428]
[1759315875631,0.28118493,116350.0,116340.0,0.67628]
[1759315876919,0.72408493,116350.0,116340.0,0.67628]
[1759315877487,0.72408493,116350.0,116340.0,0.84818991]
[1759315877729,0.72408493,116350.0,116340.0,0.84998991]
[1759315878051,0.72408493,116350.0,116340.0,0.67628]
[1759315878907,0.72408493,116350.0,116340.0,0.342]
[1759315879107,0.72408493,116350.0,116340.0,1.03392]
[1759315879314,0.72408493,116350.0,116340.0,0.342]
[1759315879542,0.72408493,116350.0,116340.0,1.03388]
[1759315882237,0.72408493,116350.0,116340.0,0.342]
[1759315882447,0.72408493,116350.0,116340.0,1.0338]
[1759315882642,0.72408493,116350.0,116340.0,0.342]
[1759315882886,0.72408493,116350.0,116340.0,0.58676]
[1759315883100,0.72408493,116350.0,116340.0,0.67616]
[1759315883322,0.72408493,116350.0,116340.0,0.342]
[1759315883502,0.72408493,116350.0,116340.0,0.67616]
[1759315883749,0.72408493,116350.0,116340.0,0.342]
[1759315883965,0.72408493,116350.0,116340.0,0.58684]
[1759315884184,0.72408493,116350.0,116340.0,0.67624]
[1759315884622,0.72408493,116350.0,116340.0,0.002]
[1759315884834,0.72408493,116350.0,116340.0,0.3362]
[1759315884835,0.8134704,116350.0,116340.0,0.3362]
[1759315885050,0.8214571,116350.0,116340.0,0.3362]
[1759315885483,0.8214571,116350.0,116340.0,0.002]
[1759315885698,0.09592979,116310.0,116300.0,0.18733449]
[1759315885918,0.10095979,116310.0,116300.0,8.27671996]
[1759315886135,0.27291405,116310.0,116300.0,0.698767]
[1759315886401,0.27291405,116310.0,116300.0,1.038767]
[1759315886615,0.27291405,116310.0,116300.0,0.698807]
[1759315887041,0.27691405,116310.0,116300.0,1.064807]
[1759315887248,0.27991405,116310.0,116300.0,1.072807]
[1759315887683,0.27991405,116310.0,116300.0,0.732807]
[1759315888432,0.27291405,116310.0,116300.0,1.038807]
[1759315888818,0.27291405,116310.0,116300.0,0.006767]
[1759315889027,0.27291405,116310.0,116300.0,0.698767]
[1759315891823,0.71581405,116310.0,116300.0,0.698767]
[1759315893147,0.26789883,116300.0,116290.0,0.35764]
[1759315893364,0.26789883,116300.0,116290.0,8.44708662]
[1759315893573,0.27096883,116300.0,116290.0,8.44708662]
[1759315893793,0.27292883,116300.0,116290.0,8.44708662]
[1759315894274,0.27292883,116300.0,116290.0,8.69196662]
[1759315894497,0.09592979,116300.0,116290.0,8.86687045]
[1759315894720,0.4429,116310.0,116300.0,0.17196904]
[1759315894928,0.4429,116310.0,116300.0,8.19208594]
[1759315895140,0.4429,116310.0,116300.0,8.19680665]
[1759315895809,0.53882979,116310.0,116300.0,8.19680665]
[1759315896226,0.54882979,116310.0,116300.0,8.20080665]
[1759315896439,0.72078405,116310.0,116300.0,8.20080665]
[1759315896651,0.72678405,116310.0,116300.0,8.21080665]
[1759315896857,0.72678405,116310.0,116300.0,8.20968665]
[1759315899044,0.72678405,116310.0,116300.0,8.18776904]
[1759315900240,0.55482979,116310.0,116300.0,8.18776904]
[1759315900480,0.55482979,116310.0,116300.0,8.52776904]
[1759315900711,0.72678405,116310.0,116300.0,8.52888904]
[1759315900935,0.72678405,116310.0,116300.0,8.52776904]
[1759315901178,0.72678405,116310.0,116300.0,9.21980904]
[1759315903528,0.72678405,116310.0,116300.0,9.22092904]
[1759315904922,0.72678405,116310.0,116300.0,9.21980904]
[1759315905595,0.72678405,116310.0,116300.0,9.21972904]
[1759315906381,0.72678405,116310.0,116300.0,9.21992904]
[1759315906551,0.55482979,116310.0,116300.0,9.21992904]
[1759315906759,0.72678405,116310.0,116300.0,9.21992904]
[1759315907133,0.72678405,116310.0,116300.0,8.52776904]
[1759315907351,0.72678405,116310.0,116300.0,8.77280904]
[1759315907537,0.72678405,116310.0,116300.0,9.21988904]
[1759315907741,0.55482979,116310.0,116300.0,9.21988904]
[1759315907948,0.4589,116310.0,116300.0,9.22100904]
[1759315908674,0.55482979,116310.0,116300.0,9.22100904]
[1759315909473,0.72678405,116310.0,116300.0,9.22100904]
[1759315909950,0.72678405,116310.0,116300.0,9.21988904]
[1759315910156,0.72678405,116310.0,116300.0,9.21980904]
[1759315911633,0.55482979,116310.0,116300.0,9.21980904]
[1759315912452,0.72678405,116310.0,116300.0,8.52776904]
[1759315912667,0.72678405,116310.0,116300.0,9.21976904]
[1759315913099,0.55482979,116310.0,116300.0,9.21976904]
[1759315914116,0.72678405,116310.0,116300.0,9.21976904]
[1759315914728,0.55482979,116310.0,116300.0,9.21976904]
[1759315916159,0.72678405,116310.0,116300.0,9.21976904]
[1759315916578,0.71078405,116310.0,116300.0,9.20576904]
[1759315916866,0.74578405,116310.0,116300.0,9.21076904]
[1759315917086,0.71078405,116310.0,116300.0,9.20576904]
[1759315917499,0.75578405,116310.0,116300.0,9.21476904]
[1759315918043,0.71078405,116310.0,116300.0,9.20576904]
[1759315921126,0.71478405,116310.0,116300.0,9.21076904]
[1759315921329,0.54282979,116310.0,116300.0,9.21076904]
[1759315921551,0.53882979,116310.0,116300.0,9.20576904]
[1759315921843,0.71078405,116310.0,116300.0,9.20576904]
[1759315922061,0.56582979,116310.0,116300.0,9.21876904]
[1759315922283,0.56182979,116310.0,116300.0,9.21076904]
[1759315922513,0.4429,116310.0,116300.0,9.31819212]
[1759315922738,0.53882979,116310.0,116300.0,9.32642641]
[1759315923635,0.53882979,116310.0,116300.0,9.32526641]
[1759315923825,0.55482979,116310.0,116300.0,9.33026641]
[1759315924049,0.55482979,116310.0,116300.0,9.33138641]
[1759315925229,0.53882979,116310.0,116300.0,9.32638641]
[1759315926174,0.54282979,116310.0,116300.0,9.33738641]
[1759315926788,0.54282979,116310.0,116300.0,8.64542641]
[1759315927021,0.54282979,116310.0,116300.0,9.33742641]
[1759315927193,0.54282979,116310.0,116300.0,8.64542641]
[1759315927353,0.09992979,116310.0,116300.0,9.33742641]
[1759315930591,0.004,116310.0,116300.0,9.33742641]
[1759315930806,0.004,116310.0,116300.0,9.35934402]
[1759315931250,0.004,116310.0,116300.0,9.38514819]
[1759315931689,0.09592979,116330.0,116320.0,0.51192615]
[1759315931908,0.09592979,116330.0,116320.0,8.84796615]
[1759315932174,0.18050833,116340.0,116330.0,0.17192469]
[1759315932385,0.28174812,116340.0,116330.0,0.41676469]
[1759315933059,0.26785448,116330.0,116320.0,0.51192615]
[1759315933288,0.27616448,116330.0,116320.0,9.20780615]
[1759315933520,0.27616448,116330.0,116320.0,8.51592615]
[1759315933760,0.27616448,116330.0,116320.0,9.20780615]
[1759315933950,0.27616448,116330.0,116320.0,9.20376615]
[1759315934200,0.27316448,116330.0,116320.0,9.20376615]
[1759315934782,0.27316448,116330.0,116320.0,8.51192615]
[1759315934995,0.27316448,116330.0,116320.0,9.20376615]
[1759315935771,0.28016448,116330.0,116320.0,9.20676615]
[1759315936417,0.27316448,116330.0,116320.0,9.20376615]
[1759315936997,0.10123979,116330.0,116320.0,9.20376615]
[1759315937215,0.27316448,116330.0,116320.0,8.75668615]
[1759315937442,0.27316448,116330.0,116320.0,9.20372615]
[1759315937876,0.10123979,116330.0,116320.0,9.20372615]
[1759315938859,0.27316448,116330.0,116320.0,9.20376615]
[1759315939093,0.10123979,116330.0,116320.0,9.20376615]
[1759315939994,0.27316448,116330.0,116320.0,8.34]
[1759315940212,0.27316448,116330.0,116320.0,9.20369947]
[1759315942627,0.27316448,116330.0,116320.0,9.20369947]
[1759315946561,0.27316448,116330.0,116320.0,8.34]
[1759315946790,0.27316448,116330.0,116320.0,9.03176]
[1759315947014,0.27316448,116330.0,116320.0,0.69176]
[1759315948066,0.27816448,116330.0,116320.0,0.69476]
[1759315948275,0.30316448,116330.0,116320.0,0.69976]
[1759315950623,0.30316448,116330.0,116320.0,0.34208]
[1759315950624,0.39254995,116330.0,116320.0,0.34208]
[1759315951039,0.40056496,116330.0,116320.0,0.34208]
[1759315951253,0.39254995,116330.0,116320.0,0.34208]
[1759315951684,0.36254995,116330.0,116320.0,0.33408]
[1759315952116,0.26791362,116290.0,116280.0,0.01512982]
[1759315952376,0.09796979,116290.0,116280.0,0.87927466]
[1759315952583,0.27292362,116290.0,116280.0,1.20414484]
[1759315952786,0.27292362,116290.0,116280.0,1.03214622]
[1759315953025,0.26995362,116290.0,116280.0,1.20594484]
[1759315953238,0.27292362,116290.0,116280.0,1.20414484]
[1759315953633,0.27992362,116290.0,116280.0,1.20914484]
[1759315953814,0.27992362,116290.0,116280.0,0.3587056]
[1759315954023,0.27992362,116290.0,116280.0,1.22238422]
[1759315954440,0.27992362,116290.0,116280.0,1.0503856]
[1759315954608,0.27292362,116290.0,116280.0,1.0453856]
[1759315954807,0.27292362,116290.0,116280.0,1.21738422]
[1759315955293,0.27892362,116290.0,116280.0,1.22538422]
[1759315956273,0.27892362,116290.0,116280.0,1.0533856]
[1759315956469,0.27892362,116290.0,116280.0,1.22538422]
[1759315957589,0.27892362,116290.0,116280.0,0.884918]
[1759315958309,0.27892362,116290.0,116280.0,0.886718]
[1759315959381,0.27892362,116290.0,116280.0,1.226718]
[1759315959979,0.27892362,116290.0,116280.0,0.942118]
[1759315960185,0.10396979,116290.0,116280.0,0.942118]
[1759315960400,0.10192979,116290.0,116280.0,8.943238]
[1759315960633,0.10192979,116290.0,116280.0,8.96782228]
[1759315960844,0.27595362,116290.0,116280.0,8.3418]
[1759315961058,0.27892362,116290.0,116280.0,9.03168]
[1759315961695,0.27892362,116290.0,116280.0,9.20367862]
[1759315961912,0.27892362,116290.0,116280.0,9.21654377]
[1759315962124,0.27892362,116290.0,116280.0,8.95514515]
[1759315962337,0.27892362,116290.0,116280.0,9.21654377]
[1759315966857,0.27292362,116290.0,116280.0,9.21834377]
[1759315967084,0.26995362,116290.0,116280.0,9.21834377]
[1759315967298,0.29495362,116290.0,116280.0,9.22334377]
[1759315967495,0.27495362,116290.0,116280.0,9.21834377]
[1759315967699,0.27792362,116290.0,116280.0,9.21834377]
[1759315967857,0.29292362,116290.0,116280.0,9.21934377]
[1759315969378,0.27292362,116290.0,116280.0,9.21834377]
[1759315971168,0.26995362,116290.0,116280.0,9.21834377]
[1759315971989,0.09592979,116290.0,116280.0,9.24404805]
[1759315972199,0.26791362,116290.0,116280.0,8.38036943]
[1759315972373,0.26791362,116290.0,116280.0,9.21830377]
[1759315972572,0.27298362,116290.0,116280.0,8.35286515]
[1759315972773,0.27298362,116290.0,116280.0,9.04450515]
[1759315972977,0.27298362,116290.0,116280.0,8.35286515]
[1759315973189,0.27298362,116290.0,116280.0,0.79998515]
[1759315973398,0.27298362,116290.0,116280.0,1.04450515]
[1759315974442,0.27298362,116290.0,116280.0,0.35286515]
[1759315974648,0.27298362,116290.0,116280.0,1.04450515]
[1759315975264,0.27298362,116290.0,116280.0,0.70450515]
[1759315976303,0.27298362,116290.0,116280.0,1.04450515]
[1759315976515,0.27298362,116290.0,116280.0,0.95510515]
[1759315976719,0.27298362,116290.0,116280.0,1.04450515]
[1759315977803,0.27298362,116290.0,116280.0,0.35286515]
[1759315978013,0.27298362,116290.0,116280.0,1.04450515]
[1759315980164,0.27298362,116290.0,116280.0,0.35286515]
[1759315980373,0.27298362,116290.0,116280.0,1.04458515]
[1759315980788,0.27298362,116290.0,116280.0,0.35286515]
[1759315980999,0.27298362,116290.0,116280.0,1.04458515]
[1759315981215,0.27298362,116290.0,116280.0,0.35286515]
[1759315981450,0.27298362,116290.0,116280.0,1.04458515]
[1759315983021,0.27353762,116290.0,116280.0,1.04458515]
[1759315984524,0.27298362,116290.0,116280.0,1.04403115]
[1759315992924,0.27298362,116290.0,116280.0,0.35231115]
[1759315993157,0.27298362,116290.0,116280.0,1.04403115]
[1759315995934,0.27298362,116290.0,116280.0,0.35231115]
[1759315996138,0.27298362,116290.0,116280.0,1.04403115]
[1759315997091,0.27298362,116290.0,116280.0,0.35231115]
[1759315997299,0.27298362,116290.0,116280.0,1.04403115]
[1759316004323,0.36236909,116290.0,116280.0,1.04403115]
[1759316005633,0.36236909,116290.0,116280.0,0.70403115]
[1759316005841,0.36236909,116290.0,116280.0,0.69172]
[1759316009808,0.38818952,116290.0,116280.0,0.69172]
[1759316018220,0.38818952,116290.0,116280.0,0.69172]
[1759316018725,0.42020845,116290.0,116280.0,0.69272]
[1759316018864,0.17199862,116280.0,116270.0,0.0239606]
[1759316019078,0.27136434,116280.0,116270.0,0.69176]
[1759316019286,0.27334434,116280.0,116270.0,0.69176]
[1759316019496,0.27334434,116280.0,116250.0,0.34]
[1759316019497,0.17202821,116260.0,116250.0,0.34]
[1759316019691,0.17202821,116260.0,116250.0,8.3418]
[1759316019904,0.17202821,116260.0,116250.0,9.03468]
[1759316020295,0.17202821,116260.0,116250.0,9.03356]
[1759316020516,0.17202821,116260.0,116250.0,8.3418]
[1759316020718,0.17202821,116260.0,116250.0,9.03356]
[1759316020719,0.267958,116260.0,116250.0,9.03356]
[1759316020918,0.274958,116260.0,116250.0,9.03356]
[1759316021123,0.274958,116260.0,116250.0,9.05687728]
[1759316021343,0.267958,116260.0,116250.0,9.05687728]
[1759316021697,0.292958,116260.0,116250.0,9.05687728]
[1759316021914,0.292958,116260.0,116250.0,9.05799728]
[1759316022310,0.292958,116260.0,116250.0,8.60963728]
[1759316022522,0.292958,116260.0,116250.0,9.05687728]
[1759316022961,0.292958,116260.0,116250.0,9.05799728]
[1759316025582,0.555458,116260.0,116250.0,9.05799728]
[1759316026229,0.555458,116260.0,116250.0,8.36623728]
[1759316026439,0.555458,116260.0,116250.0,9.05799728]
[1759316032755,0.555458,116260.0,116250.0,9.05687728]
[1759316032967,0.555458,116260.0,116250.0,9.05799728]
[1759316041096,0.555458,116260.0,116250.0,9.05687728]
[1759316041327,0.555458,116260.0,116250.0,9.05799728]
[1759316042609,0.555458,116260.0,116250.0,8.36623728]
[1759316042797,0.555458,116260.0,116250.0,8.60959728]
[1759316042997,0.555458,116260.0,116250.0,9.05687728]
[1759316047705,0.555458,116260.0,116250.0,8.36511728]
[1759316047918,0.555458,116260.0,116250.0,9.05687728]
[1759316048352,0.560608,116260.0,116250.0,8.36511728]
[1759316048565,0.560608,116260.0,116250.0,9.05687728]
[1759316048780,0.560608,116260.0,116250.0,8.36511728]
[1759316048991,0.560608,116260.0,116250.0,9.05687728]
[1759316049421,0.555458,116260.0,116250.0,8.36511728]
[1759316049889,0.557558,116260.0,116250.0,9.05691728]
[1759316052202,0.555458,116260.0,116250.0,9.05691728]
[1759316052448,0.555458,116260.0,116250.0,9.23008029]
[1759316052652,0.555458,116260.0,116250.0,9.2292766]
[1759316052778,0.555458,116260.0,116250.0,9.05723359]
[1759316053558,0.530458,116260.0,116250.0,9.05723359]
[1759316053998,0.561458,116260.0,116250.0,9.06223359]
[1759316054233,0.561458,116260.0,116250.0,9.2342766]
[1759316054453,0.561458,116260.0,116250.0,9.2353966]
[1759316054670,0.561458,116260.0,116250.0,9.05723359]